bitfinex/quotes_ETHUSD_20241122
["timestamp","ask_amount","ask_price","bid_price","bid_amount"]
[1732315620293,5.8254,3302.7,3301.6,0.8254]
[1732315620494,5.8254,3302.7,3301.7,0.55]
[1732315620694,5.0,3302.7,3301.7,0.55]
[1732315621135,0.8254,3302.8,3301.7,0.55]
[1732315622032,3.8254,3302.8,3301.7,0.55]
[1732315623124,0.8254,3302.8,3301.7,0.55]
[1732315624411,0.8254,3302.8,3301.9,0.55]
[1732315626133,5.0,3302.7,3301.9,0.55]
[1732315628246,5.0,3302.7,3302.4,2.78058018]
[1732315628563,5.0,3302.7,3302.5,1.3754]
[1732315629115,5.0,3303.5,3302.5,1.3754]
[1732315630038,5.0,3303.5,3301.9,0.79]
[1732315630039,3.174,3303.3,3301.9,0.79]
[1732315630225,5.0,3303.4,3301.9,0.79]
[1732315630226,4.011,3303.0,3301.9,0.79]
[1732315630432,5.0,3303.4,3301.9,0.79]
[1732315630433,3.174,3302.8,3301.9,0.79]
[1732315630770,0.837,3302.7,3301.9,0.79]
[1732315631061,0.837,3302.0,3301.9,0.79]
[1732315631646,4.011,3302.0,3301.9,0.79]
[1732315631960,0.837,3302.0,3301.9,0.79]
[1732315632265,0.837,3302.0,3299.7,0.8458]
[1732315632266,3.174,3301.6,3299.7,0.8458]
[1732315632465,5.47327007,3302.0,3299.7,0.8458]
[1732315632466,3.174,3301.2,3299.7,0.8458]
[1732315632648,3.174,3301.0,3299.7,0.05]
[1732315632816,0.837,3300.7,3299.7,0.05]
[1732315634001,5.0,3300.0,3299.7,0.05]
[1732315634491,5.0,3300.0,3299.8,0.55]
[1732315635857,5.0,3300.0,3299.7,0.05]
[1732315638374,0.837,3299.9,3299.7,0.05]
[1732315641008,5.0,3299.8,3299.7,0.05]
[1732315644009,8.0,3299.8,3299.7,0.05]
[1732315646708,11.174,3299.8,3299.7,0.05]
[1732315646882,8.0,3299.8,3299.7,0.05]
[1732315651135,3.0,3299.8,3299.7,0.05]
[1732315651726,3.0,3299.8,3299.7,0.69858788]
[1732315651927,3.0,3299.8,3299.7,0.6]
[1732315652805,5.0,3299.9,3299.8,0.55]
[1732315653004,3.0,3299.9,3299.8,0.55]
[1732315653210,4.209835,3300.1,3300.0,0.55]
[1732315653525,1.209835,3300.1,3300.0,0.55]
[1732315654308,1.209835,3300.1,3299.8,0.55]
[1732315654522,1.209835,3300.1,3299.9,0.8438]
[1732315654710,1.209835,3300.1,3300.0,0.55]
[1732315657964,8.0,3300.7,3300.2,0.55]
[1732315657965,5.0,3300.7,3300.2,0.55]
[1732315658164,0.8438,3300.6,3300.4,0.55]
[1732315658865,0.8438,3300.6,3300.5,1.49158788]
[1732315659255,5.8252,3301.6,3300.6,0.55]
[1732315659450,7.034489,3301.6,3300.6,0.55]
[1732315659641,6.209289,3301.6,3300.6,0.55]
[1732315659839,6.209289,3301.6,3300.9,0.55]
[1732315660060,1.209289,3301.6,3300.9,0.55]
[1732315660870,1.209289,3301.6,3300.4,0.05]
[1732315660871,1.209289,3301.6,3301.1,0.55]
[1732315664091,1.209289,3301.6,3301.0,0.843]
[1732315666772,3.174,3301.5,3301.0,0.843]
[1732315667020,1.209289,3301.6,3301.0,0.843]
[1732315667811,0.8366,3301.5,3300.5,0.55]
[1732315668012,5.0,3301.3,3300.5,0.55]
[1732315668218,5.0,3301.3,3300.5,0.6]
[1732315669078,5.0,3301.2,3300.5,0.6]
[1732315669909,3.0,3301.1,3300.5,0.6]
[1732315670207,3.0,3301.1,3300.5,0.05]
[1732315670627,0.8352,3301.0,3300.5,0.05]
[1732315670986,5.8352,3301.0,3300.5,0.05]
[1732315672102,5.0,3300.9,3300.5,0.05]
[1732315676432,5.8352,3301.0,3300.5,0.05]
[1732315677093,5.0,3301.0,3300.5,0.05]
[1732315678030,5.0,3300.8,3300.5,0.05]
[1732315679165,5.0,3300.9,3300.5,0.05]
[1732315680270,6.174,3301.1,3300.5,0.05]
[1732315682297,11.174,3301.1,3300.5,0.05]
[1732315683207,3.0,3300.9,3300.5,0.05]
[1732315683993,8.0,3300.9,3300.5,0.05]
[1732315689490,11.174,3300.9,3300.5,0.05]
[1732315690167,6.174,3300.9,3300.5,0.05]
[1732315692153,11.174,3300.9,3300.5,0.05]
[1732315693098,8.174,3300.8,3300.5,0.05]
[1732315698263,3.0,3300.9,3300.6,0.8667]
[1732315698961,0.8099,3301.0,3300.5,0.05]
[1732315699121,8.174,3301.2,3300.5,0.05]
[1732315699459,8.174,3301.2,3300.6,0.8667]
[1732315700124,5.0,3301.1,3300.6,0.8667]
[1732315700741,5.0,3301.1,3300.6,0.9167]
[1732315701263,1.209289,3301.6,3300.6,0.9167]
[1732315701264,1.209289,3301.6,3300.7,0.55]
[1732315701478,5.0,3301.8,3300.8,0.8667]
[1732315701769,5.9167,3301.8,3300.8,0.8667]
[1732315702127,5.0,3302.0,3301.1,0.55]
[1732315702323,5.0,3302.0,3301.9,0.9167]
[1732315703192,5.8667,3302.2,3301.9,0.9167]
[1732315703659,5.0,3302.2,3301.9,0.9167]
[1732315703970,0.9167,3302.4,3301.9,0.9167]
[1732315704172,0.8099,3302.9,3301.9,0.9167]
[1732315704173,5.0,3302.8,3301.9,0.9167]
[1732315704598,5.0,3302.8,3302.0,0.01]
[1732315704599,5.9167,3302.8,3302.0,0.01]
[1732315704901,5.9167,3302.8,3302.1,0.8667]
[1732315704902,5.0,3302.8,3302.1,0.8667]
[1732315705050,0.120867,3302.8,3302.1,0.8667]
[1732315706150,5.0,3303.4,3302.1,0.8667]
[1732315706351,5.0,3303.4,3303.3,0.05]
[1732315706857,5.8667,3303.4,3303.3,0.05]
[1732315707060,0.8667,3303.4,3303.3,0.05]
[1732315710562,5.0,3303.8,3303.3,0.05]
[1732315710968,0.8667,3303.7,3303.3,0.05]
[1732315711174,5.8667,3303.7,3303.3,0.05]
[1732315712090,0.8667,3303.7,3303.3,0.05]
[1732315712302,0.8667,3303.7,3303.4,0.8452]
[1732315712688,5.0,3303.8,3303.4,0.8452]
[1732315712689,5.0,3303.8,3303.4,0.8952]
[1732315712887,5.8452,3303.8,3303.4,0.8952]
[1732315713115,0.8452,3303.8,3303.4,0.8952]
[1732315714021,0.8952,3304.1,3303.4,0.8952]
[1732315718180,5.0,3304.4,3303.4,0.8952]
[1732315718505,5.8952,3304.4,3303.4,0.8952]
[1732315719225,5.8275,3304.6,3303.4,0.8952]
[1732315719592,0.8952,3304.4,3303.4,0.8952]
[1732315722586,5.0,3304.6,3303.4,0.8952]
[1732315722820,5.8952,3304.6,3303.7,0.8452]
[1732315723121,5.0,3304.8,3303.7,0.8452]
[1732315723322,0.8452,3304.7,3303.7,0.8952]
[1732315724095,5.8452,3304.7,3303.7,0.8952]
[1732315725028,0.8452,3304.7,3303.7,0.8952]
[1732315726826,5.0,3304.8,3303.7,0.8952]
[1732315727130,5.8952,3304.8,3303.7,0.8952]
[1732315730790,5.0,3304.8,3304.3,0.8452]
[1732315731159,0.8952,3305.5,3304.3,0.8452]
[1732315731440,5.0,3305.8,3304.5,0.8655]
[1732315731739,0.8452,3305.7,3304.5,0.8655]
[1732315734576,0.8452,3305.7,3304.4,0.01]
[1732315734577,0.55,3305.6,3304.6,0.8755]
[1732315736632,0.55,3305.6,3304.6,0.8655]
[1732315737084,0.8452,3305.7,3304.6,0.8755]
[1732315737255,0.55,3305.8,3304.6,0.9255]
[1732315737451,0.55,3305.8,3304.8,0.01]
[1732315737452,0.8655,3305.8,3304.8,0.01]
[1732315737778,5.0,3306.0,3304.9,0.8498]
[1732315737933,5.0,3306.0,3305.2,0.01]
[1732315738133,5.0,3306.4,3305.3,0.8998]
[1732315738738,5.0,3306.4,3305.4,0.01]
[1732315739083,0.8998,3306.6,3305.5,0.8498]
[1732315739263,5.0,3306.9,3305.5,0.8498]
[1732315739451,0.9098,3306.7,3305.6,0.01]
[1732315739744,5.0,3306.9,3305.7,0.8498]
[1732315740163,7.78447578,3307.0,3305.7,0.8498]
[1732315740363,3.0,3306.9,3305.7,0.8498]
[1732315740568,0.410858,3306.8,3305.7,0.8498]
[1732315740875,3.0,3306.9,3305.7,0.8498]
[1732315741097,3.63427578,3307.0,3305.9,0.8498]
[1732315742566,0.55,3306.9,3305.9,0.8498]
[1732315743692,0.55,3307.0,3305.9,0.8498]
[1732315744957,0.55,3307.0,3305.9,0.8598]
[1732315745800,0.55,3307.0,3306.1,0.8498]
[1732315746277,1.3998,3307.2,3306.1,0.8998]
[1732315746473,1.3998,3307.2,3306.1,0.9098]
[1732315749750,0.55,3307.3,3306.3,0.8498]
[1732315749979,1.4598,3307.3,3306.3,0.8998]
[1732315751250,0.55,3307.3,3306.3,0.8998]
[1732315754011,5.0,3307.6,3307.1,0.8589]
[1732315754149,5.0,3308.2,3307.1,0.9089]
[1732315754356,5.8998,3308.2,3307.1,0.9089]
[1732315754703,1.31261946,3307.9,3307.1,0.9089]
[1732315754885,1.31261946,3307.9,3307.1,0.9189]
[1732315755272,0.55,3308.1,3307.1,0.9089]
[1732315755583,0.55,3307.2,3307.1,0.9089]
[1732315755754,0.55,3307.2,3307.1,0.05]
[1732315756659,6.49896073,3307.2,3307.1,0.05]
[1732315757057,11.49896073,3307.2,3307.1,0.05]
[1732315759891,11.49903594,3307.2,3307.1,0.05]
[1732315761894,8.32503594,3307.2,3307.1,0.05]
[1732315762695,9.13053594,3307.2,3307.1,0.05]
[1732315763002,12.30453594,3307.2,3307.1,0.05]
[1732315765306,0.7864,3306.6,3306.0,0.7836]
[1732315767096,5.0,3306.2,3306.0,0.7836]
[1732315767296,0.55,3306.1,3305.3,0.7836]
[1732315767895,1.3336,3306.1,3305.3,0.7836]
[1732315769103,6.3336,3306.1,3305.3,0.7836]
[1732315770965,5.0,3306.0,3305.3,0.7836]
[1732315771164,0.55,3305.9,3305.3,0.7836]
[1732315773531,5.0,3306.0,3305.3,0.7836]
[1732315773532,0.55,3305.7,3305.3,0.7836]
[1732315776601,1.3149271,3305.4,3304.7,0.7928]
[1732315776926,1.3149271,3305.0,3304.7,0.7928]
[1732315777130,0.55,3304.9,3304.5,0.7928]
[1732315778118,0.55,3304.7,3304.5,0.7928]
[1732315778609,0.55,3304.7,3303.8,0.7928]
[1732315780017,5.0,3304.7,3303.8,0.7928]
[1732315780212,0.55,3304.6,3303.8,0.7928]
[1732315787950,5.55,3304.6,3303.8,0.7928]
[1732315790290,0.55,3304.4,3303.8,0.7928]
[1732315791716,3.174,3304.3,3303.8,0.7928]
[1732315791922,0.55,3304.4,3303.8,0.7928]
[1732315794977,0.55,3304.4,3303.9,0.8496]
[1732315795214,5.7928,3304.6,3304.5,0.8496]
[1732315795414,5.7928,3304.6,3304.5,1.24462402]
[1732315795415,5.0,3304.6,3304.5,1.24462402]
[1732315795614,4.1377,3304.6,3304.5,1.24462402]
[1732315796383,2.77816754,3306.4,3305.3,0.01]
[1732315796585,2.77816754,3306.4,3305.4,0.8035]
[1732315796787,1.207643,3305.5,3305.4,0.8035]
[1732315797603,2.77816754,3306.4,3305.7,0.01]
[1732315797791,0.8035,3306.3,3305.7,0.01]
[1732315797989,0.8035,3306.3,3305.8,0.8035]
[1732315799457,0.55,3306.2,3305.8,0.8035]
[1732315801855,0.55,3306.2,3305.9,0.01]
[1732315802435,0.55,3306.2,3306.1,0.8135]
[1732315803560,0.8035,3306.3,3306.1,0.8135]
[1732315803760,0.55,3306.2,3306.1,0.8135]
[1732315807465,0.8035,3306.3,3306.1,0.8135]
[1732315807671,0.55,3306.2,3306.1,0.8235]
[1732315808069,0.8035,3306.3,3306.1,0.8235]
[1732315808383,2.77816754,3307.2,3306.9,0.8035]
[1732315809387,0.8035,3307.1,3306.9,0.8035]
[1732315809885,0.55,3307.0,3306.9,0.8035]
[1732315824118,0.8035,3307.1,3306.9,0.8035]
[1732315825351,1.3535,3307.1,3307.0,0.01]
[1732315828130,0.8035,3307.1,3307.0,0.01]
[1732315831313,0.8035,3307.1,3307.0,0.02]
[1732315831608,0.8035,3307.1,3306.9,0.8035]
[1732315831815,0.8035,3307.1,3307.0,0.06285225]
[1732315832108,0.8035,3307.1,3306.8,0.01]
[1732315832266,0.8035,3307.1,3307.0,0.0617421]
[1732315832480,0.8035,3307.1,3306.8,0.01]
[1732315832679,0.8035,3307.1,3307.0,0.0617421]
[1732315832921,0.8035,3307.1,3306.7,0.8157]
[1732315833223,0.8035,3307.1,3307.0,0.01]
[1732315833826,0.55,3306.8,3306.3,0.01]
[1732315834026,0.55,3306.8,3303.2,1.51370341]
[1732315834027,1.4124,3306.3,3305.6,0.01]
[1732315834185,0.8624,3305.8,3305.2,0.01]
[1732315834523,1.86298292,3305.7,3304.8,0.01]
[1732315834728,1.86298292,3305.7,3304.5,0.01]
[1732315834729,0.8624,3305.3,3304.5,0.01]
[1732315834895,0.55,3304.8,3304.2,0.01]
[1732315835096,1.31454258,3304.9,3304.0,0.01]
[1732315835097,0.55,3304.6,3304.0,0.01]
[1732315835415,0.28190819,3304.5,3304.0,0.01]
[1732315835722,0.28190819,3304.4,3303.7,0.01]
[1732315835924,0.28190819,3304.3,3303.7,0.01]
[1732315836165,0.8624,3304.7,3303.9,0.01]
[1732315836166,0.28190819,3304.2,3303.9,0.01]
[1732315836487,0.28190819,3304.1,3303.9,0.01]
[1732315836685,0.28190819,3304.0,3303.9,0.01]
[1732315836909,0.55,3304.5,3303.9,0.01]
[1732315836910,0.55,3304.3,3303.9,0.01]
[1732315837107,0.28190819,3304.2,3303.9,0.01]
[1732315837323,0.55,3304.3,3303.9,0.01]
[1732315837523,0.28190819,3304.2,3303.9,0.01]
[1732315837728,0.28190819,3304.1,3303.9,0.01]
[1732315837933,0.28190819,3304.0,3303.9,0.01]
[1732315838228,0.28190819,3304.2,3303.9,0.01]
[1732315838397,0.55,3304.3,3303.9,0.01]
[1732315838600,0.28190819,3304.2,3304.1,0.01]
[1732315838927,0.28190819,3304.6,3304.1,0.01]
[1732315839335,0.28063019,3304.5,3304.2,0.01]
[1732315839489,0.55,3304.7,3304.2,0.01]
[1732315839830,0.28063019,3304.6,3304.2,0.01]
[1732315840187,0.55,3304.9,3304.2,0.01]
[1732315840388,0.55,3304.7,3304.2,0.01]
[1732315840588,0.28043083,3304.6,3304.2,0.01]
[1732315840805,0.55,3304.9,3304.2,0.01]
[1732315840806,0.28043083,3304.5,3304.2,0.01]
[1732315841021,0.28043083,3304.4,3304.2,0.01]
[1732315841221,0.28043083,3304.3,3304.2,0.01]
[1732315841589,0.28043083,3304.6,3304.2,0.01]
[1732315841823,0.28043083,3304.5,3304.2,0.01]
[1732315842127,0.28043083,3304.4,3304.2,0.01]
[1732315842329,0.28043083,3304.3,3304.2,0.01]
[1732315843024,0.28043083,3304.6,3304.2,0.01]
[1732315843326,0.28043083,3304.5,3304.3,0.01]
[1732315843527,5.0,3305.1,3304.4,0.01]
[1732315843829,5.0,3305.1,3305.0,0.8357]
[1732315844125,0.27989587,3305.1,3305.0,0.8357]
[1732315844324,5.0,3306.2,3305.7,0.02]
[1732315844502,0.27985562,3306.1,3305.7,0.02]
[1732315845030,0.27985562,3306.1,3305.9,0.01]
[1732315845228,0.27985562,3306.1,3306.0,0.01]
[1732315845614,0.27985562,3306.6,3306.0,0.01]
[1732315845929,0.27985562,3306.6,3306.1,0.01]
[1732315846117,0.27985562,3306.6,3306.2,0.01]
[1732315848231,0.27985562,3306.6,3306.4,0.01]
[1732315848759,0.27985562,3306.5,3306.4,0.01]
[1732315849056,0.55,3306.6,3306.4,0.01]
[1732315849257,0.27985562,3306.5,3306.4,0.01]
[1732315849661,0.55,3306.6,3306.4,0.01]
[1732315849875,0.27985562,3306.5,3306.4,0.01]
[1732315850260,0.55,3306.6,3306.4,0.01]
[1732315850558,0.27985562,3306.5,3306.4,0.01]
[1732315851123,0.27985562,3306.5,3306.4,0.871]
[1732315851327,0.55,3306.8,3306.6,0.01]
[1732315851557,0.55,3306.8,3306.4,0.91709847]
[1732315851558,0.55,3307.0,3306.7,0.01]
[1732315851759,0.55,3307.0,3306.4,0.91709847]
[1732315851760,0.8624,3307.2,3306.9,0.01]
[1732315851965,0.27989234,3307.0,3306.9,0.01]
[1732315852750,0.27989234,3307.0,3306.9,0.02]
[1732315852950,0.27989234,3307.0,3306.9,0.01]
[1732315853260,0.27989234,3307.0,3306.9,0.02]
[1732315855452,0.27982122,3307.0,3306.9,0.02]
[1732315858363,0.27982122,3307.0,3306.9,0.07576818]
[1732315858563,0.27982122,3307.0,3306.9,0.881]
[1732315858752,0.27982122,3307.0,3306.9,0.93676818]
[1732315862051,5.0,3307.8,3306.9,0.93676818]
[1732315862361,0.27972942,3307.0,3306.9,0.93676818]
[1732315863376,0.27971958,3307.0,3306.9,0.93676818]
[1732315863776,0.27971958,3307.0,3306.9,0.07576818]
[1732315864072,0.27971958,3307.0,3306.9,0.05576818]
[1732315864261,0.27971958,3307.0,3306.7,0.01]
[1732315864840,0.55,3306.9,3306.7,0.01]
[1732315865068,1.12981958,3306.8,3306.7,0.01]
[1732315865372,1.67981958,3306.8,3306.3,0.01]
[1732315865548,0.27971958,3306.7,3306.3,0.01]
[1732315866273,0.27971958,3306.7,3306.4,0.0556393]
[1732315866481,0.27971958,3306.7,3306.3,0.01]
[1732315866638,1.4001,3306.8,3306.3,0.01]
[1732315866839,0.27992934,3306.7,3306.4,0.01]
[1732315867260,0.2799287,3306.6,3306.4,0.01]
[1732315867463,0.2799287,3306.7,3306.4,0.01]
[1732315867760,0.2799287,3306.6,3306.4,0.01]
[1732315867965,0.2799287,3306.5,3306.4,0.01]
[1732315868360,0.2799287,3306.7,3306.4,0.01]
[1732315868540,0.2799287,3306.6,3306.4,0.01]
[1732315868740,0.2799287,3306.5,3306.4,0.01]
[1732315868941,0.2799287,3306.7,3306.4,0.01]
[1732315869176,0.2799287,3306.6,3306.4,0.01]
[1732315869372,0.2799287,3306.5,3306.4,0.01]
[1732315869777,0.2799287,3306.7,3306.4,0.01]
[1732315870007,0.2799287,3306.6,3306.4,0.01]
[1732315870289,0.2799287,3306.5,3306.1,0.01]
[1732315870493,1.4001,3306.8,3306.5,0.0556393]
[1732315870494,0.2799287,3306.7,3306.5,0.0556393]
[1732315870654,0.28061938,3306.6,3306.2,0.02]
[1732315870958,0.28061938,3306.5,3306.2,0.02]
[1732315871153,0.28061938,3306.4,3306.2,0.02]
[1732315871354,0.28061938,3306.3,3306.2,0.02]
[1732315872187,0.28061938,3306.3,3306.2,0.01]
[1732315874088,0.28061938,3306.3,3306.1,0.01]
[1732315874268,0.28061938,3306.2,3306.1,0.01]
[1732315874868,0.28175285,3306.2,3306.1,0.01]
[1732315875069,0.28175285,3306.2,3306.0,0.01]
[1732315875501,0.28175285,3306.1,3306.0,0.01]
[1732315877007,0.28180222,3306.1,3306.0,0.06586373]
[1732315877310,0.83180222,3306.1,3306.0,0.06586373]
[1732315878493,0.83179362,3306.1,3306.0,0.06586373]
[1732315881309,0.83179362,3306.1,3306.0,0.05587242]
[1732315881599,0.83179362,3306.1,3305.7,0.01]
[1732315881774,0.55,3306.1,3306.0,0.0540103]
[1732315881974,0.55,3306.1,3305.7,0.01]
[1732315882175,0.55,3306.1,3306.0,0.0540103]
[1732315882389,0.55,3306.1,3305.7,0.01]
[1732315882599,0.55,3306.1,3306.0,0.0540103]
[1732315882812,0.55,3306.0,3305.7,0.01]
[1732315883301,0.55,3306.1,3305.7,0.01]
[1732315883725,0.7963,3306.2,3305.9,0.01]
[1732315883895,5.0,3306.6,3305.9,0.01]
[1732315883896,0.55,3306.5,3305.9,0.01]
[1732315888709,0.55,3306.7,3305.9,0.01]
[1732315889111,0.55,3306.8,3305.9,0.01]
[1732315892813,0.55,3306.8,3305.9,1.32325948]
[1732315893934,0.55,3306.8,3306.1,0.01]
[1732315894485,0.55,3306.8,3305.9,1.31325948]
[1732315895005,0.53794,3306.8,3305.9,1.31325948]
[1732315897019,0.53794,3306.8,3306.2,1.31325948]
[1732315898023,0.53794,3306.8,3306.2,1.01186948]
[1732315904699,0.53794,3306.8,3306.2,0.06955672]
[1732315911081,0.53794,3306.8,3306.2,1.31325948]
[1732315911428,0.53794,3306.8,3306.3,0.05225397]
[1732315911704,0.53794,3306.8,3306.2,1.31325948]
[1732315912000,0.53794,3306.8,3306.4,0.05225397]
[1732315912208,0.53794,3306.8,3306.2,1.31325948]
[1732315912705,0.53794,3306.8,3306.3,0.05225397]
[1732315912904,0.53794,3306.8,3306.2,1.31325948]
[1732315913110,0.53794,3306.8,3306.4,0.052225]
[1732315913305,0.53794,3306.8,3306.2,1.31325948]
[1732315913518,0.53794,3306.8,3306.5,0.052225]
[1732315913677,0.53794,3306.8,3306.2,1.31325948]
[1732315914010,0.53794,3306.8,3306.3,0.052225]
[1732315914414,0.53794,3306.8,3306.2,1.31325948]
[1732315914907,0.53794,3306.8,3306.3,0.052225]
[1732315915119,0.53794,3306.8,3306.2,1.31325948]
[1732315915413,0.53794,3306.8,3306.4,0.052225]
[1732315915569,0.53794,3306.8,3306.2,1.31325948]
[1732315915766,0.53794,3306.8,3306.5,0.052225]
[1732315916008,0.53794,3306.8,3306.2,1.31325948]
[1732315916507,0.53794,3306.8,3306.3,0.052225]
[1732315916669,0.53794,3306.8,3306.2,1.31325948]
[1732315916872,0.53794,3306.8,3306.3,0.052225]
[1732315917071,0.53794,3306.8,3306.2,1.31325948]
[1732315917310,0.53794,3306.8,3306.3,0.052225]
[1732315917506,0.53794,3306.8,3306.2,1.31325948]
[1732315917814,0.53794,3306.8,3306.4,0.052225]
[1732315918022,0.53794,3306.8,3306.2,1.31325948]
[1732315918514,0.53794,3306.8,3306.3,0.052225]
[1732315918698,0.53794,3306.8,3306.2,1.31325948]
[1732315918890,0.53794,3306.8,3306.4,0.052225]
[1732315919084,0.53794,3306.8,3306.2,1.31325948]
[1732315919311,0.53794,3306.8,3306.3,0.052225]
[1732315919525,0.53794,3306.8,3306.2,1.31325948]
[1732315919706,0.53794,3306.8,3306.4,0.052225]
[1732315919916,0.53794,3306.8,3306.3,0.7923]
[1732315920205,0.53794,3306.8,3306.5,0.052225]
[1732315920521,0.55,3307.0,3306.6,0.05216417]
[1732315920725,0.8035,3307.1,3306.8,1.31325948]
[1732315920884,5.0,3307.3,3307.0,1.31325948]
[1732315921083,1.206954,3307.8,3307.1,0.7923]
[1732315921310,1.206954,3307.8,3307.6,1.31325948]
[1732315921479,0.0181143,3307.9,3307.6,1.31325948]
[1732315921684,1.2250213,3307.9,3307.7,0.05215403]
[1732315922294,0.55,3307.8,3307.7,0.05215403]
[1732315926026,0.55,3307.8,3307.6,1.06415351]
[1732315926227,0.55,3307.8,3307.7,0.05025773]
[1732315934957,0.0181143,3307.9,3307.7,0.05025773]
[1732315935172,1.0822673,3307.9,3307.7,0.05025773]
[1732315935575,0.0181143,3307.9,3307.7,0.05025773]
[1732315940998,0.0181143,3307.9,3307.6,0.7815]
[1732315941171,0.0181143,3307.9,3307.8,1.36183039]
[1732315941367,0.0181143,3307.9,3307.8,1.31325948]
[1732315941573,0.0181143,3307.9,3307.8,1.36183039]
[1732315943199,0.0181143,3307.9,3307.8,0.04857091]
[1732315943495,0.0181143,3307.9,3307.8,1.31325948]
[1732315943656,0.0181143,3307.9,3307.8,1.36183039]
[1732315948507,0.0181143,3307.9,3307.8,1.57616343]
[1732315949296,0.0181143,3307.9,3307.8,2.35766343]
[1732315955465,0.0181143,3307.9,3307.8,3.67092291]
[1732315955690,0.0181143,3307.9,3307.8,2.35766343]
[1732315956086,0.0181143,3307.9,3307.8,2.1030794]
[1732315956296,0.0181143,3307.9,3307.8,2.31338734]
[1732315957002,0.0181143,3307.9,3307.8,3.62664682]
[1732315957307,0.0181143,3307.9,3307.8,2.31338734]
[1732315959668,0.0181143,3307.9,3307.8,3.62664682]
[1732315959878,0.0181143,3307.9,3307.8,2.31338734]
[1732315960078,0.0181143,3307.9,3307.8,0.04660597]
[1732315960296,0.7946,3307.8,3307.2,0.61483081]
[1732315960589,0.7946,3307.8,3307.1,0.01129417]
[1732315960590,0.55,3307.7,3307.3,1.35831191]
[1732315961325,0.58022491,3307.7,3307.3,1.35831191]
[1732315961621,0.7946,3307.6,3307.3,0.04505243]
[1732315966428,0.82482491,3307.6,3307.3,0.04505243]
[1732315968132,1.37482491,3307.6,3307.5,1.31325948]
[1732315968434,1.37482491,3307.6,3307.5,0.04366763]
[1732315968435,1.3446,3307.6,3307.5,0.04366763]
[1732315968809,1.3446,3307.6,3307.2,1.31325948]
[1732315969135,1.3446,3307.6,3307.5,1.31325948]
[1732315969635,1.3446,3307.6,3307.5,1.35692711]
[1732315970843,1.3446,3307.6,3307.5,0.04366763]
[1732315971007,1.3446,3307.6,3307.2,1.05564711]
[1732315971212,0.03022491,3307.5,3307.2,1.05564711]
[1732315971539,0.03022491,3307.5,3307.3,0.04072261]
[1732315971927,1.3446,3307.6,3307.3,0.04072261]
[1732315972814,0.03022491,3307.5,3307.3,0.04072261]
[1732315973142,1.3446,3307.6,3307.3,0.04072261]
[1732315973816,0.03022491,3307.5,3307.3,0.04072261]
[1732315978252,0.03022491,3307.5,3307.3,0.34212261]
[1732315978399,0.03022491,3307.5,3307.3,0.04072261]
[1732315981531,0.58022491,3307.5,3307.3,0.04072261]
[1732315982129,0.58022491,3307.5,3307.2,1.05564711]
[1732315982607,0.55,3307.5,3307.2,1.05564711]
[1732315982942,0.55,3307.4,3307.2,1.05564711]
[1732315983155,0.55,3307.3,3307.2,1.05564711]
[1732315983438,0.03022491,3307.3,3307.2,1.09378653]
[1732315983948,0.55,3307.5,3307.2,1.09378653]
[1732315984303,0.03022491,3307.4,3307.2,1.09378653]
[1732315984733,0.55,3307.5,3307.2,1.09378653]
[1732315985719,0.03022491,3307.4,3307.2,1.09378653]
[1732315986047,0.03022491,3307.4,3307.2,0.79250653]
[1732315987145,0.55,3307.5,3307.2,0.79250653]
[1732315989225,0.03022491,3307.4,3307.2,0.79250653]
[1732315989427,0.55,3307.3,3307.2,0.79250653]
[1732315990253,0.58022491,3307.5,3307.2,0.79250653]
[1732315990553,0.55,3307.3,3307.2,0.75436711]
[1732315990757,0.55,3307.3,3307.2,1.31325948]
[1732315990922,0.55,3307.3,3307.2,1.34893945]
[1732315991476,0.8039,3307.3,3307.2,1.34893945]
[1732315991963,1.3539,3307.3,3307.2,1.31325948]
[1732315992141,1.3539,3307.3,3307.2,1.34893945]
[1732315993053,6.3539,3307.3,3307.2,1.34893945]
[1732315993255,6.3539,3307.3,3307.2,0.03567997]
[1732315993557,5.58022491,3307.3,3306.9,1.31325948]
[1732315993756,5.58022491,3307.3,3307.0,0.03450285]
[1732315993757,0.55,3307.1,3307.0,0.03450285]
[1732315994067,1.3773,3307.1,3306.9,1.29776233]
[1732315994239,1.3773,3307.1,3305.9,0.41238819]
[1732315994240,0.55,3306.8,3305.9,0.41238819]
[1732315994446,1.40752491,3306.7,3306.6,1.31325948]
[1732315995031,6.40752491,3306.7,3306.6,1.31325948]
[1732315995435,0.8273,3306.5,3306.3,1.31325948]
[1732315995656,0.58022491,3306.4,3306.3,1.31325948]
[1732315996860,1.44822491,3306.4,3306.3,1.31325948]
[1732315998152,6.44822491,3306.4,3306.3,1.31325948]
[1732315998379,6.418,3306.4,3306.3,1.31325948]
[1732315998675,0.55,3306.3,3306.0,1.31325948]
[1732315998970,0.55,3306.1,3306.0,1.31325948]
[1732316000240,0.58022491,3306.1,3306.0,1.31325948]
[1732316001037,0.58022491,3306.1,3306.0,1.01182948]
[1732316002165,0.03022491,3306.1,3306.0,1.01182948]
[1732316002371,5.0,3306.2,3306.1,0.8585]
[1732316002738,5.0,3306.2,3306.1,0.8921829]